{"text_format":"3","workbook":"xlsx","n_sheets":4,"sheets":["Yıllık Kümüle Bütçe Özeti","Aylık Harcamalar Özeti","Listelenmiş Harcamalar","Bağışlar ve Sponsorluklar"],"not_rendered":{"defined_names":8,"comments":2},"read":"whole","date_system":"1900"}

{"sheet":"Yıllık Kümüle Bütçe Özeti","index":0,"n_rows":30,"n_cols":6,"rows_kept":30,"merged":[[1,0,1,5]]}
[]
["2005 Fiili - Bütçe Yıllık Kümüle Karşılaştırması"]
[]
["Kebir Defteri Kodu","Hesap Adı","Fiili","Bütçe","Kalan TL","Kalan %"]
[]
[1000,"Reklam",{"$f":"'Aylık Harcamalar Özeti'!O6","v":{"v":1501.5,"d":"1,501.50 TL"}},{"v":100000,"d":"100,000.00 TL"},{"$f":"SUM(+D6-C6)","v":{"v":98498.5,"d":"98,498.50 TL"}},{"$f":"SUM(E6/D6)","v":{"v":0.984985,"d":"98.50%"}}]
[]
[2000,"Ofis Donanımı",{"$f":"'Aylık Harcamalar Özeti'!O8","v":0},{"v":100000,"d":"100,000.00 TL"},{"$f":"SUM(+D8-C8)","v":{"v":100000,"d":"100,000.00 TL"}},{"$f":"SUM(E8/D8)","v":{"v":1,"d":"100.00%"}}]
[]
[3000,"Yazıcılar",{"$f":"'Aylık Harcamalar Özeti'!O10","v":0},{"v":100000,"d":"100,000.00 TL"},{"$f":"SUM(+D10-C10)","v":{"v":100000,"d":"100,000.00 TL"}},{"$f":"SUM(E10/D10)","v":{"v":1,"d":"100.00%"}}]
[]
[4000,"Sunucu Maliyetleri",{"$f":"'Aylık Harcamalar Özeti'!O12","v":0},{"v":100000,"d":"100,000.00 TL"},{"$f":"SUM(+D12-C12)","v":{"v":100000,"d":"100,000.00 TL"}},{"$f":"SUM(E12/D12)","v":{"v":1,"d":"100.00%"}}]
[]
[5000,"Malzemeler",{"$f":"'Aylık Harcamalar Özeti'!O14","v":0},{"v":50000,"d":"50,000.00 TL"},{"$f":"SUM(+D14-C14)","v":{"v":50000,"d":"50,000.00 TL"}},{"$f":"SUM(E14/D14)","v":{"v":1,"d":"100.00%"}}]
[]
[6000,"İstemci Harcamaları",{"$f":"'Aylık Harcamalar Özeti'!O16","v":0},{"v":25000,"d":"25,000.00 TL"},{"$f":"SUM(+D16-C16)","v":{"v":25000,"d":"25,000.00 TL"}},{"$f":"SUM(E16/D16)","v":{"v":1,"d":"100.00%"}}]
[]
[7000,"Bilgisayarlar",{"$f":"'Aylık Harcamalar Özeti'!O18","v":{"v":5000,"d":"5,000.00 TL"}},{"v":75000,"d":"75,000.00 TL"},{"$f":"SUM(+D18-C18)","v":{"v":70000,"d":"70,000.00 TL"}},{"$f":"SUM(E18/D18)","v":{"v":0.9333333333333333,"d":"93.33%"}}]
[]
[8000,"Tedavi Planı",{"$f":"'Aylık Harcamalar Özeti'!O20","v":0},{"v":65000,"d":"65,000.00 TL"},{"$f":"SUM(+D20-C20)","v":{"v":65000,"d":"65,000.00 TL"}},{"$f":"SUM(E20/D20)","v":{"v":1,"d":"100.00%"}}]
[]
[9000,"Bina Maliyetleri",{"$f":"'Aylık Harcamalar Özeti'!O22","v":0},{"v":125000,"d":"125,000.00 TL"},{"$f":"SUM(+D22-C22)","v":{"v":125000,"d":"125,000.00 TL"}},{"$f":"SUM(E22/D22)","v":{"v":1,"d":"100.00%"}}]
[]
[10000,"Pazarlama",{"$f":"'Aylık Harcamalar Özeti'!O24","v":0},{"v":100000,"d":"100,000.00 TL"},{"$f":"SUM(+D24-C24)","v":{"v":100000,"d":"100,000.00 TL"}},{"$f":"SUM(E24/D24)","v":{"v":1,"d":"100.00%"}}]
[]
[11000,"Bağışlar",{"$f":"'Aylık Harcamalar Özeti'!O26","v":{"v":7500,"d":"7,500.00 TL"}},{"v":250000,"d":"250,000.00 TL"},{"$f":"SUM(+D26-C26)","v":{"v":242500,"d":"242,500.00 TL"}},{"$f":"SUM(E26/D26)","v":{"v":0.97,"d":"97.00%"}}]
[]
[12000,"Sponsorluklar",{"$f":"'Aylık Harcamalar Özeti'!O28","v":{"v":2000,"d":"2,000.00 TL"}},{"v":50000,"d":"50,000.00 TL"},{"$f":"SUM(+D28-C28)","v":{"v":48000,"d":"48,000.00 TL"}},{"$f":"SUM(E28/D28)","v":{"v":0.96,"d":"96.00%"}}]
[]
[null,"TOPLAM",{"$f":"SUM(C6:C28)","v":{"v":16001.5,"d":"16,001.50 TL"}},{"$f":"SUM(D6:D28)","v":{"v":1140000,"d":"1,140,000.00 TL"}},{"$f":"SUM(E6:E28)","v":{"v":1123998.5,"d":"1,123,998.50 TL"}},{"$f":"SUM(E30/D30)","v":{"v":0.9859635964912281,"d":"98.60%"}}]

{"sheet":"Aylık Harcamalar Özeti","index":1,"n_rows":30,"n_cols":15,"rows_kept":30,"merged":[[1,0,1,14]]}
[]
["2005 Aylık Harcamalar"]
[]
["Kebir Defteri Kodu","Hesap Adı","2005-01-01","2005-02-01","2005-03-01","2005-04-01","2005-05-01","2005-06-01","2005-07-01","2005-08-01","2005-09-01","2005-10-01","2005-11-01","2005-12-01",2005]
[]
[1000,"Reklam",{"$f":"SUMIF('Bağışlar ve Sponsorluklar'!$L:$L,\"=\"&($A6&TEXT(C$4,\"aaa-yy\")),'Bağışlar ve Sponsorluklar'!$D:$D)+SUMIF('Listelenmiş Harcamalar'!$J:$J,\"=\"&($A6&TEXT(C$4,\"aaa-yy\")),'Listelenmiş Harcamalar'!$E:$E)","v":{"v":750.75,"d":"750.75 TL"}},{"$f":"SUMIF('Bağışlar ve Sponsorluklar'!$L:$L,\"=\"&($A6&TEXT(D$4,\"aaa-yy\")),'Bağışlar ve Sponsorluklar'!$D:$D)+SUMIF('Listelenmiş Harcamalar'!$J:$J,\"=\"&($A6&TEXT(D$4,\"aaa-yy\")),'Listelenmiş Harcamalar'!$E:$E)","v":0},{"$f":"SUMIF('Bağışlar ve Sponsorluklar'!$L:$L,\"=\"&($A6&TEXT(E$4,\"aaa-yy\")),'Bağışlar ve Sponsorluklar'!$D:$D)+SUMIF('Listelenmiş Harcamalar'!$J:$J,\"=\"&($A6&TEXT(E$4,\"aaa-yy\")),'Listelenmiş Harcamalar'!$E:$E)","v":0},{"$f":"SUMIF('Bağışlar ve Sponsorluklar'!$L:$L,\"=\"&($A6&TEXT(F$4,\"aaa-yy\")),'Bağışlar ve Sponsorluklar'!$D:$D)+SUMIF('Listelenmiş Harcamalar'!$J:$J,\"=\"&($A6&TEXT(F$4,\"aaa-yy\")),'Listelenmiş Harcamalar'!$E:$E)","v":0},{"$f":"SUMIF('Bağışlar ve Sponsorluklar'!$L:$L,\"=\"&($A6&TEXT(G$4,\"aaa-yy\")),'Bağışlar ve Sponsorluklar'!$D:$D)+SUMIF('Listelenmiş Harcamalar'!$J:$J,\"=\"&($A6&TEXT(G$4,\"aaa-yy\")),'Listelenmiş Harcamalar'!$E:$E)","v":0},{"$f":"SUMIF('Bağışlar ve Sponsorluklar'!$L:$L,\"=\"&($A6&TEXT(H$4,\"aaa-yy\")),'Bağışlar ve Sponsorluklar'!$D:$D)+SUMIF('Listelenmiş Harcamalar'!$J:$J,\"=\"&($A6&TEXT(H$4,\"aaa-yy\")),'Listelenmiş Harcamalar'!$E:$E)","v":0},{"$f":"SUMIF('Bağışlar ve Sponsorluklar'!$L:$L,\"=\"&($A6&TEXT(I$4,\"aaa-yy\")),'Bağışlar ve Sponsorluklar'!$D:$D)+SUMIF('Listelenmiş Harcamalar'!$J:$J,\"=\"&($A6&TEXT(I$4,\"aaa-yy\")),'Listelenmiş Harcamalar'!$E:$E)","v":0},{"$f":"SUMIF('Bağışlar ve Sponsorluklar'!$L:$L,\"=\"&($A6&TEXT(J$4,\"aaa-yy\")),'Bağışlar ve Sponsorluklar'!$D:$D)+SUMIF('Listelenmiş Harcamalar'!$J:$J,\"=\"&($A6&TEXT(J$4,\"aaa-yy\")),'Listelenmiş Harcamalar'!$E:$E)","v":0},{"$f":"SUMIF('Bağışlar ve Sponsorluklar'!$L:$L,\"=\"&($A6&TEXT(K$4,\"aaa-yy\")),'Bağışlar ve Sponsorluklar'!$D:$D)+SUMIF('Listelenmiş Harcamalar'!$J:$J,\"=\"&($A6&TEXT(K$4,\"aaa-yy\")),'Listelenmiş Harcamalar'!$E:$E)","v":0},{"$f":"SUMIF('Bağışlar ve Sponsorluklar'!$L:$L,\"=\"&($A6&TEXT(L$4,\"aaa-yy\")),'Bağışlar ve Sponsorluklar'!$D:$D)+SUMIF('Listelenmiş Harcamalar'!$J:$J,\"=\"&($A6&TEXT(L$4,\"aaa-yy\")),'Listelenmiş Harcamalar'!$E:$E)","v":{"v":750.75,"d":"750.75 TL"}},{"$f":"SUMIF('Bağışlar ve Sponsorluklar'!$L:$L,\"=\"&($A6&TEXT(M$4,\"aaa-yy\")),'Bağışlar ve Sponsorluklar'!$D:$D)+SUMIF('Listelenmiş Harcamalar'!$J:$J,\"=\"&($A6&TEXT(M$4,\"aaa-yy\")),'Listelenmiş Harcamalar'!$E:$E)","v":0},{"$f":"SUMIF('Bağışlar ve Sponsorluklar'!$L:$L,\"=\"&($A6&TEXT(N$4,\"aaa-yy\")),'Bağışlar ve Sponsorluklar'!$D:$D)+SUMIF('Listelenmiş Harcamalar'!$J:$J,\"=\"&($A6&TEXT(N$4,\"aaa-yy\")),'Listelenmiş Harcamalar'!$E:$E)","v":0},{"$f":"SUM(C6:N6)","v":{"v":1501.5,"d":"1,501.50 TL"}}]
[]
[2000,"Ofis Donanımı",{"$f":"SUMIF('Bağışlar ve Sponsorluklar'!$L:$L,\"=\"&($A8&TEXT(C$4,\"aaa-yy\")),'Bağışlar ve Sponsorluklar'!$D:$D)+SUMIF('Listelenmiş Harcamalar'!$J:$J,\"=\"&($A8&TEXT(C$4,\"aaa-yy\")),'Listelenmiş Harcamalar'!$E:$E)","v":0},{"$f":"SUMIF('Bağışlar ve Sponsorluklar'!$L:$L,\"=\"&($A8&TEXT(D$4,\"aaa-yy\")),'Bağışlar ve Sponsorluklar'!$D:$D)+SUMIF('Listelenmiş Harcamalar'!$J:$J,\"=\"&($A8&TEXT(D$4,\"aaa-yy\")),'Listelenmiş Harcamalar'!$E:$E)","v":0},{"$f":"SUMIF('Bağışlar ve Sponsorluklar'!$L:$L,\"=\"&($A8&TEXT(E$4,\"aaa-yy\")),'Bağışlar ve Sponsorluklar'!$D:$D)+SUMIF('Listelenmiş Harcamalar'!$J:$J,\"=\"&($A8&TEXT(E$4,\"aaa-yy\")),'Listelenmiş Harcamalar'!$E:$E)","v":0},{"$f":"SUMIF('Bağışlar ve Sponsorluklar'!$L:$L,\"=\"&($A8&TEXT(F$4,\"aaa-yy\")),'Bağışlar ve Sponsorluklar'!$D:$D)+SUMIF('Listelenmiş Harcamalar'!$J:$J,\"=\"&($A8&TEXT(F$4,\"aaa-yy\")),'Listelenmiş Harcamalar'!$E:$E)","v":0},{"$f":"SUMIF('Bağışlar ve Sponsorluklar'!$L:$L,\"=\"&($A8&TEXT(G$4,\"aaa-yy\")),'Bağışlar ve Sponsorluklar'!$D:$D)+SUMIF('Listelenmiş Harcamalar'!$J:$J,\"=\"&($A8&TEXT(G$4,\"aaa-yy\")),'Listelenmiş Harcamalar'!$E:$E)","v":0},{"$f":"SUMIF('Bağışlar ve Sponsorluklar'!$L:$L,\"=\"&($A8&TEXT(H$4,\"aaa-yy\")),'Bağışlar ve Sponsorluklar'!$D:$D)+SUMIF('Listelenmiş Harcamalar'!$J:$J,\"=\"&($A8&TEXT(H$4,\"aaa-yy\")),'Listelenmiş Harcamalar'!$E:$E)","v":0},{"$f":"SUMIF('Bağışlar ve Sponsorluklar'!$L:$L,\"=\"&($A8&TEXT(I$4,\"aaa-yy\")),'Bağışlar ve Sponsorluklar'!$D:$D)+SUMIF('Listelenmiş Harcamalar'!$J:$J,\"=\"&($A8&TEXT(I$4,\"aaa-yy\")),'Listelenmiş Harcamalar'!$E:$E)","v":0},{"$f":"SUMIF('Bağışlar ve Sponsorluklar'!$L:$L,\"=\"&($A8&TEXT(J$4,\"aaa-yy\")),'Bağışlar ve Sponsorluklar'!$D:$D)+SUMIF('Listelenmiş Harcamalar'!$J:$J,\"=\"&($A8&TEXT(J$4,\"aaa-yy\")),'Listelenmiş Harcamalar'!$E:$E)","v":0},{"$f":"SUMIF('Bağışlar ve Sponsorluklar'!$L:$L,\"=\"&($A8&TEXT(K$4,\"aaa-yy\")),'Bağışlar ve Sponsorluklar'!$D:$D)+SUMIF('Listelenmiş Harcamalar'!$J:$J,\"=\"&($A8&TEXT(K$4,\"aaa-yy\")),'Listelenmiş Harcamalar'!$E:$E)","v":0},{"$f":"SUMIF('Bağışlar ve Sponsorluklar'!$L:$L,\"=\"&($A8&TEXT(L$4,\"aaa-yy\")),'Bağışlar ve Sponsorluklar'!$D:$D)+SUMIF('Listelenmiş Harcamalar'!$J:$J,\"=\"&($A8&TEXT(L$4,\"aaa-yy\")),'Listelenmiş Harcamalar'!$E:$E)","v":0},{"$f":"SUMIF('Bağışlar ve Sponsorluklar'!$L:$L,\"=\"&($A8&TEXT(M$4,\"aaa-yy\")),'Bağışlar ve Sponsorluklar'!$D:$D)+SUMIF('Listelenmiş Harcamalar'!$J:$J,\"=\"&($A8&TEXT(M$4,\"aaa-yy\")),'Listelenmiş Harcamalar'!$E:$E)","v":0},{"$f":"SUMIF('Bağışlar ve Sponsorluklar'!$L:$L,\"=\"&($A8&TEXT(N$4,\"aaa-yy\")),'Bağışlar ve Sponsorluklar'!$D:$D)+SUMIF('Listelenmiş Harcamalar'!$J:$J,\"=\"&($A8&TEXT(N$4,\"aaa-yy\")),'Listelenmiş Harcamalar'!$E:$E)","v":0},{"$f":"SUM(C8:N8)","v":0}]
[]
[3000,"Yazıcılar",{"$f":"SUMIF('Bağışlar ve Sponsorluklar'!$L:$L,\"=\"&($A10&TEXT(C$4,\"aaa-yy\")),'Bağışlar ve Sponsorluklar'!$D:$D)+SUMIF('Listelenmiş Harcamalar'!$J:$J,\"=\"&($A10&TEXT(C$4,\"aaa-yy\")),'Listelenmiş Harcamalar'!$E:$E)","v":0},{"$f":"SUMIF('Bağışlar ve Sponsorluklar'!$L:$L,\"=\"&($A10&TEXT(D$4,\"aaa-yy\")),'Bağışlar ve Sponsorluklar'!$D:$D)+SUMIF('Listelenmiş Harcamalar'!$J:$J,\"=\"&($A10&TEXT(D$4,\"aaa-yy\")),'Listelenmiş Harcamalar'!$E:$E)","v":0},{"$f":"SUMIF('Bağışlar ve Sponsorluklar'!$L:$L,\"=\"&($A10&TEXT(E$4,\"aaa-yy\")),'Bağışlar ve Sponsorluklar'!$D:$D)+SUMIF('Listelenmiş Harcamalar'!$J:$J,\"=\"&($A10&TEXT(E$4,\"aaa-yy\")),'Listelenmiş Harcamalar'!$E:$E)","v":0},{"$f":"SUMIF('Bağışlar ve Sponsorluklar'!$L:$L,\"=\"&($A10&TEXT(F$4,\"aaa-yy\")),'Bağışlar ve Sponsorluklar'!$D:$D)+SUMIF('Listelenmiş Harcamalar'!$J:$J,\"=\"&($A10&TEXT(F$4,\"aaa-yy\")),'Listelenmiş Harcamalar'!$E:$E)","v":0},{"$f":"SUMIF('Bağışlar ve Sponsorluklar'!$L:$L,\"=\"&($A10&TEXT(G$4,\"aaa-yy\")),'Bağışlar ve Sponsorluklar'!$D:$D)+SUMIF('Listelenmiş Harcamalar'!$J:$J,\"=\"&($A10&TEXT(G$4,\"aaa-yy\")),'Listelenmiş Harcamalar'!$E:$E)","v":0},{"$f":"SUMIF('Bağışlar ve Sponsorluklar'!$L:$L,\"=\"&($A10&TEXT(H$4,\"aaa-yy\")),'Bağışlar ve Sponsorluklar'!$D:$D)+SUMIF('Listelenmiş Harcamalar'!$J:$J,\"=\"&($A10&TEXT(H$4,\"aaa-yy\")),'Listelenmiş Harcamalar'!$E:$E)","v":0},{"$f":"SUMIF('Bağışlar ve Sponsorluklar'!$L:$L,\"=\"&($A10&TEXT(I$4,\"aaa-yy\")),'Bağışlar ve Sponsorluklar'!$D:$D)+SUMIF('Listelenmiş Harcamalar'!$J:$J,\"=\"&($A10&TEXT(I$4,\"aaa-yy\")),'Listelenmiş Harcamalar'!$E:$E)","v":0},{"$f":"SUMIF('Bağışlar ve Sponsorluklar'!$L:$L,\"=\"&($A10&TEXT(J$4,\"aaa-yy\")),'Bağışlar ve Sponsorluklar'!$D:$D)+SUMIF('Listelenmiş Harcamalar'!$J:$J,\"=\"&($A10&TEXT(J$4,\"aaa-yy\")),'Listelenmiş Harcamalar'!$E:$E)","v":0},{"$f":"SUMIF('Bağışlar ve Sponsorluklar'!$L:$L,\"=\"&($A10&TEXT(K$4,\"aaa-yy\")),'Bağışlar ve Sponsorluklar'!$D:$D)+SUMIF('Listelenmiş Harcamalar'!$J:$J,\"=\"&($A10&TEXT(K$4,\"aaa-yy\")),'Listelenmiş Harcamalar'!$E:$E)","v":0},{"$f":"SUMIF('Bağışlar ve Sponsorluklar'!$L:$L,\"=\"&($A10&TEXT(L$4,\"aaa-yy\")),'Bağışlar ve Sponsorluklar'!$D:$D)+SUMIF('Listelenmiş Harcamalar'!$J:$J,\"=\"&($A10&TEXT(L$4,\"aaa-yy\")),'Listelenmiş Harcamalar'!$E:$E)","v":0},{"$f":"SUMIF('Bağışlar ve Sponsorluklar'!$L:$L,\"=\"&($A10&TEXT(M$4,\"aaa-yy\")),'Bağışlar ve Sponsorluklar'!$D:$D)+SUMIF('Listelenmiş Harcamalar'!$J:$J,\"=\"&($A10&TEXT(M$4,\"aaa-yy\")),'Listelenmiş Harcamalar'!$E:$E)","v":0},{"$f":"SUMIF('Bağışlar ve Sponsorluklar'!$L:$L,\"=\"&($A10&TEXT(N$4,\"aaa-yy\")),'Bağışlar ve Sponsorluklar'!$D:$D)+SUMIF('Listelenmiş Harcamalar'!$J:$J,\"=\"&($A10&TEXT(N$4,\"aaa-yy\")),'Listelenmiş Harcamalar'!$E:$E)","v":0},{"$f":"SUM(C10:N10)","v":0}]
[]
[4000,"Sunucu Maliyetleri",{"$f":"SUMIF('Bağışlar ve Sponsorluklar'!$L:$L,\"=\"&($A12&TEXT(C$4,\"aaa-yy\")),'Bağışlar ve Sponsorluklar'!$D:$D)+SUMIF('Listelenmiş Harcamalar'!$J:$J,\"=\"&($A12&TEXT(C$4,\"aaa-yy\")),'Listelenmiş Harcamalar'!$E:$E)","v":0},{"$f":"SUMIF('Bağışlar ve Sponsorluklar'!$L:$L,\"=\"&($A12&TEXT(D$4,\"aaa-yy\")),'Bağışlar ve Sponsorluklar'!$D:$D)+SUMIF('Listelenmiş Harcamalar'!$J:$J,\"=\"&($A12&TEXT(D$4,\"aaa-yy\")),'Listelenmiş Harcamalar'!$E:$E)","v":0},{"$f":"SUMIF('Bağışlar ve Sponsorluklar'!$L:$L,\"=\"&($A12&TEXT(E$4,\"aaa-yy\")),'Bağışlar ve Sponsorluklar'!$D:$D)+SUMIF('Listelenmiş Harcamalar'!$J:$J,\"=\"&($A12&TEXT(E$4,\"aaa-yy\")),'Listelenmiş Harcamalar'!$E:$E)","v":0},{"$f":"SUMIF('Bağışlar ve Sponsorluklar'!$L:$L,\"=\"&($A12&TEXT(F$4,\"aaa-yy\")),'Bağışlar ve Sponsorluklar'!$D:$D)+SUMIF('Listelenmiş Harcamalar'!$J:$J,\"=\"&($A12&TEXT(F$4,\"aaa-yy\")),'Listelenmiş Harcamalar'!$E:$E)","v":0},{"$f":"SUMIF('Bağışlar ve Sponsorluklar'!$L:$L,\"=\"&($A12&TEXT(G$4,\"aaa-yy\")),'Bağışlar ve Sponsorluklar'!$D:$D)+SUMIF('Listelenmiş Harcamalar'!$J:$J,\"=\"&($A12&TEXT(G$4,\"aaa-yy\")),'Listelenmiş Harcamalar'!$E:$E)","v":0},{"$f":"SUMIF('Bağışlar ve Sponsorluklar'!$L:$L,\"=\"&($A12&TEXT(H$4,\"aaa-yy\")),'Bağışlar ve Sponsorluklar'!$D:$D)+SUMIF('Listelenmiş Harcamalar'!$J:$J,\"=\"&($A12&TEXT(H$4,\"aaa-yy\")),'Listelenmiş Harcamalar'!$E:$E)","v":0},{"$f":"SUMIF('Bağışlar ve Sponsorluklar'!$L:$L,\"=\"&($A12&TEXT(I$4,\"aaa-yy\")),'Bağışlar ve Sponsorluklar'!$D:$D)+SUMIF('Listelenmiş Harcamalar'!$J:$J,\"=\"&($A12&TEXT(I$4,\"aaa-yy\")),'Listelenmiş Harcamalar'!$E:$E)","v":0},{"$f":"SUMIF('Bağışlar ve Sponsorluklar'!$L:$L,\"=\"&($A12&TEXT(J$4,\"aaa-yy\")),'Bağışlar ve Sponsorluklar'!$D:$D)+SUMIF('Listelenmiş Harcamalar'!$J:$J,\"=\"&($A12&TEXT(J$4,\"aaa-yy\")),'Listelenmiş Harcamalar'!$E:$E)","v":0},{"$f":"SUMIF('Bağışlar ve Sponsorluklar'!$L:$L,\"=\"&($A12&TEXT(K$4,\"aaa-yy\")),'Bağışlar ve Sponsorluklar'!$D:$D)+SUMIF('Listelenmiş Harcamalar'!$J:$J,\"=\"&($A12&TEXT(K$4,\"aaa-yy\")),'Listelenmiş Harcamalar'!$E:$E)","v":0},{"$f":"SUMIF('Bağışlar ve Sponsorluklar'!$L:$L,\"=\"&($A12&TEXT(L$4,\"aaa-yy\")),'Bağışlar ve Sponsorluklar'!$D:$D)+SUMIF('Listelenmiş Harcamalar'!$J:$J,\"=\"&($A12&TEXT(L$4,\"aaa-yy\")),'Listelenmiş Harcamalar'!$E:$E)","v":0},{"$f":"SUMIF('Bağışlar ve Sponsorluklar'!$L:$L,\"=\"&($A12&TEXT(M$4,\"aaa-yy\")),'Bağışlar ve Sponsorluklar'!$D:$D)+SUMIF('Listelenmiş Harcamalar'!$J:$J,\"=\"&($A12&TEXT(M$4,\"aaa-yy\")),'Listelenmiş Harcamalar'!$E:$E)","v":0},{"$f":"SUMIF('Bağışlar ve Sponsorluklar'!$L:$L,\"=\"&($A12&TEXT(N$4,\"aaa-yy\")),'Bağışlar ve Sponsorluklar'!$D:$D)+SUMIF('Listelenmiş Harcamalar'!$J:$J,\"=\"&($A12&TEXT(N$4,\"aaa-yy\")),'Listelenmiş Harcamalar'!$E:$E)","v":0},{"$f":"SUM(C12:N12)","v":0}]
[]
[5000,"Malzemeler",{"$f":"SUMIF('Bağışlar ve Sponsorluklar'!$L:$L,\"=\"&($A14&TEXT(C$4,\"aaa-yy\")),'Bağışlar ve Sponsorluklar'!$D:$D)+SUMIF('Listelenmiş Harcamalar'!$J:$J,\"=\"&($A14&TEXT(C$4,\"aaa-yy\")),'Listelenmiş Harcamalar'!$E:$E)","v":0},{"$f":"SUMIF('Bağışlar ve Sponsorluklar'!$L:$L,\"=\"&($A14&TEXT(D$4,\"aaa-yy\")),'Bağışlar ve Sponsorluklar'!$D:$D)+SUMIF('Listelenmiş Harcamalar'!$J:$J,\"=\"&($A14&TEXT(D$4,\"aaa-yy\")),'Listelenmiş Harcamalar'!$E:$E)","v":0},{"$f":"SUMIF('Bağışlar ve Sponsorluklar'!$L:$L,\"=\"&($A14&TEXT(E$4,\"aaa-yy\")),'Bağışlar ve Sponsorluklar'!$D:$D)+SUMIF('Listelenmiş Harcamalar'!$J:$J,\"=\"&($A14&TEXT(E$4,\"aaa-yy\")),'Listelenmiş Harcamalar'!$E:$E)","v":0},{"$f":"SUMIF('Bağışlar ve Sponsorluklar'!$L:$L,\"=\"&($A14&TEXT(F$4,\"aaa-yy\")),'Bağışlar ve Sponsorluklar'!$D:$D)+SUMIF('Listelenmiş Harcamalar'!$J:$J,\"=\"&($A14&TEXT(F$4,\"aaa-yy\")),'Listelenmiş Harcamalar'!$E:$E)","v":0},{"$f":"SUMIF('Bağışlar ve Sponsorluklar'!$L:$L,\"=\"&($A14&TEXT(G$4,\"aaa-yy\")),'Bağışlar ve Sponsorluklar'!$D:$D)+SUMIF('Listelenmiş Harcamalar'!$J:$J,\"=\"&($A14&TEXT(G$4,\"aaa-yy\")),'Listelenmiş Harcamalar'!$E:$E)","v":0},{"$f":"SUMIF('Bağışlar ve Sponsorluklar'!$L:$L,\"=\"&($A14&TEXT(H$4,\"aaa-yy\")),'Bağışlar ve Sponsorluklar'!$D:$D)+SUMIF('Listelenmiş Harcamalar'!$J:$J,\"=\"&($A14&TEXT(H$4,\"aaa-yy\")),'Listelenmiş Harcamalar'!$E:$E)","v":0},{"$f":"SUMIF('Bağışlar ve Sponsorluklar'!$L:$L,\"=\"&($A14&TEXT(I$4,\"aaa-yy\")),'Bağışlar ve Sponsorluklar'!$D:$D)+SUMIF('Listelenmiş Harcamalar'!$J:$J,\"=\"&($A14&TEXT(I$4,\"aaa-yy\")),'Listelenmiş Harcamalar'!$E:$E)","v":0},{"$f":"SUMIF('Bağışlar ve Sponsorluklar'!$L:$L,\"=\"&($A14&TEXT(J$4,\"aaa-yy\")),'Bağışlar ve Sponsorluklar'!$D:$D)+SUMIF('Listelenmiş Harcamalar'!$J:$J,\"=\"&($A14&TEXT(J$4,\"aaa-yy\")),'Listelenmiş Harcamalar'!$E:$E)","v":0},{"$f":"SUMIF('Bağışlar ve Sponsorluklar'!$L:$L,\"=\"&($A14&TEXT(K$4,\"aaa-yy\")),'Bağışlar ve Sponsorluklar'!$D:$D)+SUMIF('Listelenmiş Harcamalar'!$J:$J,\"=\"&($A14&TEXT(K$4,\"aaa-yy\")),'Listelenmiş Harcamalar'!$E:$E)","v":0},{"$f":"SUMIF('Bağışlar ve Sponsorluklar'!$L:$L,\"=\"&($A14&TEXT(L$4,\"aaa-yy\")),'Bağışlar ve Sponsorluklar'!$D:$D)+SUMIF('Listelenmiş Harcamalar'!$J:$J,\"=\"&($A14&TEXT(L$4,\"aaa-yy\")),'Listelenmiş Harcamalar'!$E:$E)","v":0},{"$f":"SUMIF('Bağışlar ve Sponsorluklar'!$L:$L,\"=\"&($A14&TEXT(M$4,\"aaa-yy\")),'Bağışlar ve Sponsorluklar'!$D:$D)+SUMIF('Listelenmiş Harcamalar'!$J:$J,\"=\"&($A14&TEXT(M$4,\"aaa-yy\")),'Listelenmiş Harcamalar'!$E:$E)","v":0},{"$f":"SUMIF('Bağışlar ve Sponsorluklar'!$L:$L,\"=\"&($A14&TEXT(N$4,\"aaa-yy\")),'Bağışlar ve Sponsorluklar'!$D:$D)+SUMIF('Listelenmiş Harcamalar'!$J:$J,\"=\"&($A14&TEXT(N$4,\"aaa-yy\")),'Listelenmiş Harcamalar'!$E:$E)","v":0},{"$f":"SUM(C14:N14)","v":0}]
[]
[6000,"İstemci Harcamaları",{"$f":"SUMIF('Bağışlar ve Sponsorluklar'!$L:$L,\"=\"&($A16&TEXT(C$4,\"aaa-yy\")),'Bağışlar ve Sponsorluklar'!$D:$D)+SUMIF('Listelenmiş Harcamalar'!$J:$J,\"=\"&($A16&TEXT(C$4,\"aaa-yy\")),'Listelenmiş Harcamalar'!$E:$E)","v":0},{"$f":"SUMIF('Bağışlar ve Sponsorluklar'!$L:$L,\"=\"&($A16&TEXT(D$4,\"aaa-yy\")),'Bağışlar ve Sponsorluklar'!$D:$D)+SUMIF('Listelenmiş Harcamalar'!$J:$J,\"=\"&($A16&TEXT(D$4,\"aaa-yy\")),'Listelenmiş Harcamalar'!$E:$E)","v":0},{"$f":"SUMIF('Bağışlar ve Sponsorluklar'!$L:$L,\"=\"&($A16&TEXT(E$4,\"aaa-yy\")),'Bağışlar ve Sponsorluklar'!$D:$D)+SUMIF('Listelenmiş Harcamalar'!$J:$J,\"=\"&($A16&TEXT(E$4,\"aaa-yy\")),'Listelenmiş Harcamalar'!$E:$E)","v":0},{"$f":"SUMIF('Bağışlar ve Sponsorluklar'!$L:$L,\"=\"&($A16&TEXT(F$4,\"aaa-yy\")),'Bağışlar ve Sponsorluklar'!$D:$D)+SUMIF('Listelenmiş Harcamalar'!$J:$J,\"=\"&($A16&TEXT(F$4,\"aaa-yy\")),'Listelenmiş Harcamalar'!$E:$E)","v":0},{"$f":"SUMIF('Bağışlar ve Sponsorluklar'!$L:$L,\"=\"&($A16&TEXT(G$4,\"aaa-yy\")),'Bağışlar ve Sponsorluklar'!$D:$D)+SUMIF('Listelenmiş Harcamalar'!$J:$J,\"=\"&($A16&TEXT(G$4,\"aaa-yy\")),'Listelenmiş Harcamalar'!$E:$E)","v":0},{"$f":"SUMIF('Bağışlar ve Sponsorluklar'!$L:$L,\"=\"&($A16&TEXT(H$4,\"aaa-yy\")),'Bağışlar ve Sponsorluklar'!$D:$D)+SUMIF('Listelenmiş Harcamalar'!$J:$J,\"=\"&($A16&TEXT(H$4,\"aaa-yy\")),'Listelenmiş Harcamalar'!$E:$E)","v":0},{"$f":"SUMIF('Bağışlar ve Sponsorluklar'!$L:$L,\"=\"&($A16&TEXT(I$4,\"aaa-yy\")),'Bağışlar ve Sponsorluklar'!$D:$D)+SUMIF('Listelenmiş Harcamalar'!$J:$J,\"=\"&($A16&TEXT(I$4,\"aaa-yy\")),'Listelenmiş Harcamalar'!$E:$E)","v":0},{"$f":"SUMIF('Bağışlar ve Sponsorluklar'!$L:$L,\"=\"&($A16&TEXT(J$4,\"aaa-yy\")),'Bağışlar ve Sponsorluklar'!$D:$D)+SUMIF('Listelenmiş Harcamalar'!$J:$J,\"=\"&($A16&TEXT(J$4,\"aaa-yy\")),'Listelenmiş Harcamalar'!$E:$E)","v":0},{"$f":"SUMIF('Bağışlar ve Sponsorluklar'!$L:$L,\"=\"&($A16&TEXT(K$4,\"aaa-yy\")),'Bağışlar ve Sponsorluklar'!$D:$D)+SUMIF('Listelenmiş Harcamalar'!$J:$J,\"=\"&($A16&TEXT(K$4,\"aaa-yy\")),'Listelenmiş Harcamalar'!$E:$E)","v":0},{"$f":"SUMIF('Bağışlar ve Sponsorluklar'!$L:$L,\"=\"&($A16&TEXT(L$4,\"aaa-yy\")),'Bağışlar ve Sponsorluklar'!$D:$D)+SUMIF('Listelenmiş Harcamalar'!$J:$J,\"=\"&($A16&TEXT(L$4,\"aaa-yy\")),'Listelenmiş Harcamalar'!$E:$E)","v":0},{"$f":"SUMIF('Bağışlar ve Sponsorluklar'!$L:$L,\"=\"&($A16&TEXT(M$4,\"aaa-yy\")),'Bağışlar ve Sponsorluklar'!$D:$D)+SUMIF('Listelenmiş Harcamalar'!$J:$J,\"=\"&($A16&TEXT(M$4,\"aaa-yy\")),'Listelenmiş Harcamalar'!$E:$E)","v":0},{"$f":"SUMIF('Bağışlar ve Sponsorluklar'!$L:$L,\"=\"&($A16&TEXT(N$4,\"aaa-yy\")),'Bağışlar ve Sponsorluklar'!$D:$D)+SUMIF('Listelenmiş Harcamalar'!$J:$J,\"=\"&($A16&TEXT(N$4,\"aaa-yy\")),'Listelenmiş Harcamalar'!$E:$E)","v":0},{"$f":"SUM(C16:N16)","v":0}]
[]
[7000,"Bilgisayarlar",{"$f":"SUMIF('Bağışlar ve Sponsorluklar'!$L:$L,\"=\"&($A18&TEXT(C$4,\"aaa-yy\")),'Bağışlar ve Sponsorluklar'!$D:$D)+SUMIF('Listelenmiş Harcamalar'!$J:$J,\"=\"&($A18&TEXT(C$4,\"aaa-yy\")),'Listelenmiş Harcamalar'!$E:$E)","v":{"v":2500,"d":"2,500.00 TL"}},{"$f":"SUMIF('Bağışlar ve Sponsorluklar'!$L:$L,\"=\"&($A18&TEXT(D$4,\"aaa-yy\")),'Bağışlar ve Sponsorluklar'!$D:$D)+SUMIF('Listelenmiş Harcamalar'!$J:$J,\"=\"&($A18&TEXT(D$4,\"aaa-yy\")),'Listelenmiş Harcamalar'!$E:$E)","v":0},{"$f":"SUMIF('Bağışlar ve Sponsorluklar'!$L:$L,\"=\"&($A18&TEXT(E$4,\"aaa-yy\")),'Bağışlar ve Sponsorluklar'!$D:$D)+SUMIF('Listelenmiş Harcamalar'!$J:$J,\"=\"&($A18&TEXT(E$4,\"aaa-yy\")),'Listelenmiş Harcamalar'!$E:$E)","v":0},{"$f":"SUMIF('Bağışlar ve Sponsorluklar'!$L:$L,\"=\"&($A18&TEXT(F$4,\"aaa-yy\")),'Bağışlar ve Sponsorluklar'!$D:$D)+SUMIF('Listelenmiş Harcamalar'!$J:$J,\"=\"&($A18&TEXT(F$4,\"aaa-yy\")),'Listelenmiş Harcamalar'!$E:$E)","v":0},{"$f":"SUMIF('Bağışlar ve Sponsorluklar'!$L:$L,\"=\"&($A18&TEXT(G$4,\"aaa-yy\")),'Bağışlar ve Sponsorluklar'!$D:$D)+SUMIF('Listelenmiş Harcamalar'!$J:$J,\"=\"&($A18&TEXT(G$4,\"aaa-yy\")),'Listelenmiş Harcamalar'!$E:$E)","v":0},{"$f":"SUMIF('Bağışlar ve Sponsorluklar'!$L:$L,\"=\"&($A18&TEXT(H$4,\"aaa-yy\")),'Bağışlar ve Sponsorluklar'!$D:$D)+SUMIF('Listelenmiş Harcamalar'!$J:$J,\"=\"&($A18&TEXT(H$4,\"aaa-yy\")),'Listelenmiş Harcamalar'!$E:$E)","v":0},{"$f":"SUMIF('Bağışlar ve Sponsorluklar'!$L:$L,\"=\"&($A18&TEXT(I$4,\"aaa-yy\")),'Bağışlar ve Sponsorluklar'!$D:$D)+SUMIF('Listelenmiş Harcamalar'!$J:$J,\"=\"&($A18&TEXT(I$4,\"aaa-yy\")),'Listelenmiş Harcamalar'!$E:$E)","v":0},{"$f":"SUMIF('Bağışlar ve Sponsorluklar'!$L:$L,\"=\"&($A18&TEXT(J$4,\"aaa-yy\")),'Bağışlar ve Sponsorluklar'!$D:$D)+SUMIF('Listelenmiş Harcamalar'!$J:$J,\"=\"&($A18&TEXT(J$4,\"aaa-yy\")),'Listelenmiş Harcamalar'!$E:$E)","v":0},{"$f":"SUMIF('Bağışlar ve Sponsorluklar'!$L:$L,\"=\"&($A18&TEXT(K$4,\"aaa-yy\")),'Bağışlar ve Sponsorluklar'!$D:$D)+SUMIF('Listelenmiş Harcamalar'!$J:$J,\"=\"&($A18&TEXT(K$4,\"aaa-yy\")),'Listelenmiş Harcamalar'!$E:$E)","v":0},{"$f":"SUMIF('Bağışlar ve Sponsorluklar'!$L:$L,\"=\"&($A18&TEXT(L$4,\"aaa-yy\")),'Bağışlar ve Sponsorluklar'!$D:$D)+SUMIF('Listelenmiş Harcamalar'!$J:$J,\"=\"&($A18&TEXT(L$4,\"aaa-yy\")),'Listelenmiş Harcamalar'!$E:$E)","v":{"v":2500,"d":"2,500.00 TL"}},{"$f":"SUMIF('Bağışlar ve Sponsorluklar'!$L:$L,\"=\"&($A18&TEXT(M$4,\"aaa-yy\")),'Bağışlar ve Sponsorluklar'!$D:$D)+SUMIF('Listelenmiş Harcamalar'!$J:$J,\"=\"&($A18&TEXT(M$4,\"aaa-yy\")),'Listelenmiş Harcamalar'!$E:$E)","v":0},{"$f":"SUMIF('Bağışlar ve Sponsorluklar'!$L:$L,\"=\"&($A18&TEXT(N$4,\"aaa-yy\")),'Bağışlar ve Sponsorluklar'!$D:$D)+SUMIF('Listelenmiş Harcamalar'!$J:$J,\"=\"&($A18&TEXT(N$4,\"aaa-yy\")),'Listelenmiş Harcamalar'!$E:$E)","v":0},{"$f":"SUM(C18:N18)","v":{"v":5000,"d":"5,000.00 TL"}}]
[]
[8000,"Tedavi Planı",{"$f":"SUMIF('Bağışlar ve Sponsorluklar'!$L:$L,\"=\"&($A20&TEXT(C$4,\"aaa-yy\")),'Bağışlar ve Sponsorluklar'!$D:$D)+SUMIF('Listelenmiş Harcamalar'!$J:$J,\"=\"&($A20&TEXT(C$4,\"aaa-yy\")),'Listelenmiş Harcamalar'!$E:$E)","v":0},{"$f":"SUMIF('Bağışlar ve Sponsorluklar'!$L:$L,\"=\"&($A20&TEXT(D$4,\"aaa-yy\")),'Bağışlar ve Sponsorluklar'!$D:$D)+SUMIF('Listelenmiş Harcamalar'!$J:$J,\"=\"&($A20&TEXT(D$4,\"aaa-yy\")),'Listelenmiş Harcamalar'!$E:$E)","v":0},{"$f":"SUMIF('Bağışlar ve Sponsorluklar'!$L:$L,\"=\"&($A20&TEXT(E$4,\"aaa-yy\")),'Bağışlar ve Sponsorluklar'!$D:$D)+SUMIF('Listelenmiş Harcamalar'!$J:$J,\"=\"&($A20&TEXT(E$4,\"aaa-yy\")),'Listelenmiş Harcamalar'!$E:$E)","v":0},{"$f":"SUMIF('Bağışlar ve Sponsorluklar'!$L:$L,\"=\"&($A20&TEXT(F$4,\"aaa-yy\")),'Bağışlar ve Sponsorluklar'!$D:$D)+SUMIF('Listelenmiş Harcamalar'!$J:$J,\"=\"&($A20&TEXT(F$4,\"aaa-yy\")),'Listelenmiş Harcamalar'!$E:$E)","v":0},{"$f":"SUMIF('Bağışlar ve Sponsorluklar'!$L:$L,\"=\"&($A20&TEXT(G$4,\"aaa-yy\")),'Bağışlar ve Sponsorluklar'!$D:$D)+SUMIF('Listelenmiş Harcamalar'!$J:$J,\"=\"&($A20&TEXT(G$4,\"aaa-yy\")),'Listelenmiş Harcamalar'!$E:$E)","v":0},{"$f":"SUMIF('Bağışlar ve Sponsorluklar'!$L:$L,\"=\"&($A20&TEXT(H$4,\"aaa-yy\")),'Bağışlar ve Sponsorluklar'!$D:$D)+SUMIF('Listelenmiş Harcamalar'!$J:$J,\"=\"&($A20&TEXT(H$4,\"aaa-yy\")),'Listelenmiş Harcamalar'!$E:$E)","v":0},{"$f":"SUMIF('Bağışlar ve Sponsorluklar'!$L:$L,\"=\"&($A20&TEXT(I$4,\"aaa-yy\")),'Bağışlar ve Sponsorluklar'!$D:$D)+SUMIF('Listelenmiş Harcamalar'!$J:$J,\"=\"&($A20&TEXT(I$4,\"aaa-yy\")),'Listelenmiş Harcamalar'!$E:$E)","v":0},{"$f":"SUMIF('Bağışlar ve Sponsorluklar'!$L:$L,\"=\"&($A20&TEXT(J$4,\"aaa-yy\")),'Bağışlar ve Sponsorluklar'!$D:$D)+SUMIF('Listelenmiş Harcamalar'!$J:$J,\"=\"&($A20&TEXT(J$4,\"aaa-yy\")),'Listelenmiş Harcamalar'!$E:$E)","v":0},{"$f":"SUMIF('Bağışlar ve Sponsorluklar'!$L:$L,\"=\"&($A20&TEXT(K$4,\"aaa-yy\")),'Bağışlar ve Sponsorluklar'!$D:$D)+SUMIF('Listelenmiş Harcamalar'!$J:$J,\"=\"&($A20&TEXT(K$4,\"aaa-yy\")),'Listelenmiş Harcamalar'!$E:$E)","v":0},{"$f":"SUMIF('Bağışlar ve Sponsorluklar'!$L:$L,\"=\"&($A20&TEXT(L$4,\"aaa-yy\")),'Bağışlar ve Sponsorluklar'!$D:$D)+SUMIF('Listelenmiş Harcamalar'!$J:$J,\"=\"&($A20&TEXT(L$4,\"aaa-yy\")),'Listelenmiş Harcamalar'!$E:$E)","v":0},{"$f":"SUMIF('Bağışlar ve Sponsorluklar'!$L:$L,\"=\"&($A20&TEXT(M$4,\"aaa-yy\")),'Bağışlar ve Sponsorluklar'!$D:$D)+SUMIF('Listelenmiş Harcamalar'!$J:$J,\"=\"&($A20&TEXT(M$4,\"aaa-yy\")),'Listelenmiş Harcamalar'!$E:$E)","v":0},{"$f":"SUMIF('Bağışlar ve Sponsorluklar'!$L:$L,\"=\"&($A20&TEXT(N$4,\"aaa-yy\")),'Bağışlar ve Sponsorluklar'!$D:$D)+SUMIF('Listelenmiş Harcamalar'!$J:$J,\"=\"&($A20&TEXT(N$4,\"aaa-yy\")),'Listelenmiş Harcamalar'!$E:$E)","v":0},{"$f":"SUM(C20:N20)","v":0}]
[]
[9000,"Bina Maliyetleri",{"$f":"SUMIF('Bağışlar ve Sponsorluklar'!$L:$L,\"=\"&($A22&TEXT(C$4,\"aaa-yy\")),'Bağışlar ve Sponsorluklar'!$D:$D)+SUMIF('Listelenmiş Harcamalar'!$J:$J,\"=\"&($A22&TEXT(C$4,\"aaa-yy\")),'Listelenmiş Harcamalar'!$E:$E)","v":0},{"$f":"SUMIF('Bağışlar ve Sponsorluklar'!$L:$L,\"=\"&($A22&TEXT(D$4,\"aaa-yy\")),'Bağışlar ve Sponsorluklar'!$D:$D)+SUMIF('Listelenmiş Harcamalar'!$J:$J,\"=\"&($A22&TEXT(D$4,\"aaa-yy\")),'Listelenmiş Harcamalar'!$E:$E)","v":0},{"$f":"SUMIF('Bağışlar ve Sponsorluklar'!$L:$L,\"=\"&($A22&TEXT(E$4,\"aaa-yy\")),'Bağışlar ve Sponsorluklar'!$D:$D)+SUMIF('Listelenmiş Harcamalar'!$J:$J,\"=\"&($A22&TEXT(E$4,\"aaa-yy\")),'Listelenmiş Harcamalar'!$E:$E)","v":0},{"$f":"SUMIF('Bağışlar ve Sponsorluklar'!$L:$L,\"=\"&($A22&TEXT(F$4,\"aaa-yy\")),'Bağışlar ve Sponsorluklar'!$D:$D)+SUMIF('Listelenmiş Harcamalar'!$J:$J,\"=\"&($A22&TEXT(F$4,\"aaa-yy\")),'Listelenmiş Harcamalar'!$E:$E)","v":0},{"$f":"SUMIF('Bağışlar ve Sponsorluklar'!$L:$L,\"=\"&($A22&TEXT(G$4,\"aaa-yy\")),'Bağışlar ve Sponsorluklar'!$D:$D)+SUMIF('Listelenmiş Harcamalar'!$J:$J,\"=\"&($A22&TEXT(G$4,\"aaa-yy\")),'Listelenmiş Harcamalar'!$E:$E)","v":0},{"$f":"SUMIF('Bağışlar ve Sponsorluklar'!$L:$L,\"=\"&($A22&TEXT(H$4,\"aaa-yy\")),'Bağışlar ve Sponsorluklar'!$D:$D)+SUMIF('Listelenmiş Harcamalar'!$J:$J,\"=\"&($A22&TEXT(H$4,\"aaa-yy\")),'Listelenmiş Harcamalar'!$E:$E)","v":0},{"$f":"SUMIF('Bağışlar ve Sponsorluklar'!$L:$L,\"=\"&($A22&TEXT(I$4,\"aaa-yy\")),'Bağışlar ve Sponsorluklar'!$D:$D)+SUMIF('Listelenmiş Harcamalar'!$J:$J,\"=\"&($A22&TEXT(I$4,\"aaa-yy\")),'Listelenmiş Harcamalar'!$E:$E)","v":0},{"$f":"SUMIF('Bağışlar ve Sponsorluklar'!$L:$L,\"=\"&($A22&TEXT(J$4,\"aaa-yy\")),'Bağışlar ve Sponsorluklar'!$D:$D)+SUMIF('Listelenmiş Harcamalar'!$J:$J,\"=\"&($A22&TEXT(J$4,\"aaa-yy\")),'Listelenmiş Harcamalar'!$E:$E)","v":0},{"$f":"SUMIF('Bağışlar ve Sponsorluklar'!$L:$L,\"=\"&($A22&TEXT(K$4,\"aaa-yy\")),'Bağışlar ve Sponsorluklar'!$D:$D)+SUMIF('Listelenmiş Harcamalar'!$J:$J,\"=\"&($A22&TEXT(K$4,\"aaa-yy\")),'Listelenmiş Harcamalar'!$E:$E)","v":0},{"$f":"SUMIF('Bağışlar ve Sponsorluklar'!$L:$L,\"=\"&($A22&TEXT(L$4,\"aaa-yy\")),'Bağışlar ve Sponsorluklar'!$D:$D)+SUMIF('Listelenmiş Harcamalar'!$J:$J,\"=\"&($A22&TEXT(L$4,\"aaa-yy\")),'Listelenmiş Harcamalar'!$E:$E)","v":0},{"$f":"SUMIF('Bağışlar ve Sponsorluklar'!$L:$L,\"=\"&($A22&TEXT(M$4,\"aaa-yy\")),'Bağışlar ve Sponsorluklar'!$D:$D)+SUMIF('Listelenmiş Harcamalar'!$J:$J,\"=\"&($A22&TEXT(M$4,\"aaa-yy\")),'Listelenmiş Harcamalar'!$E:$E)","v":0},{"$f":"SUMIF('Bağışlar ve Sponsorluklar'!$L:$L,\"=\"&($A22&TEXT(N$4,\"aaa-yy\")),'Bağışlar ve Sponsorluklar'!$D:$D)+SUMIF('Listelenmiş Harcamalar'!$J:$J,\"=\"&($A22&TEXT(N$4,\"aaa-yy\")),'Listelenmiş Harcamalar'!$E:$E)","v":0},{"$f":"SUM(C22:N22)","v":0}]
[]
[10000,"Pazarlama",{"$f":"SUMIF('Bağışlar ve Sponsorluklar'!$L:$L,\"=\"&($A24&TEXT(C$4,\"aaa-yy\")),'Bağışlar ve Sponsorluklar'!$D:$D)+SUMIF('Listelenmiş Harcamalar'!$J:$J,\"=\"&($A24&TEXT(C$4,\"aaa-yy\")),'Listelenmiş Harcamalar'!$E:$E)","v":0},{"$f":"SUMIF('Bağışlar ve Sponsorluklar'!$L:$L,\"=\"&($A24&TEXT(D$4,\"aaa-yy\")),'Bağışlar ve Sponsorluklar'!$D:$D)+SUMIF('Listelenmiş Harcamalar'!$J:$J,\"=\"&($A24&TEXT(D$4,\"aaa-yy\")),'Listelenmiş Harcamalar'!$E:$E)","v":0},{"$f":"SUMIF('Bağışlar ve Sponsorluklar'!$L:$L,\"=\"&($A24&TEXT(E$4,\"aaa-yy\")),'Bağışlar ve Sponsorluklar'!$D:$D)+SUMIF('Listelenmiş Harcamalar'!$J:$J,\"=\"&($A24&TEXT(E$4,\"aaa-yy\")),'Listelenmiş Harcamalar'!$E:$E)","v":0},{"$f":"SUMIF('Bağışlar ve Sponsorluklar'!$L:$L,\"=\"&($A24&TEXT(F$4,\"aaa-yy\")),'Bağışlar ve Sponsorluklar'!$D:$D)+SUMIF('Listelenmiş Harcamalar'!$J:$J,\"=\"&($A24&TEXT(F$4,\"aaa-yy\")),'Listelenmiş Harcamalar'!$E:$E)","v":0},{"$f":"SUMIF('Bağışlar ve Sponsorluklar'!$L:$L,\"=\"&($A24&TEXT(G$4,\"aaa-yy\")),'Bağışlar ve Sponsorluklar'!$D:$D)+SUMIF('Listelenmiş Harcamalar'!$J:$J,\"=\"&($A24&TEXT(G$4,\"aaa-yy\")),'Listelenmiş Harcamalar'!$E:$E)","v":0},{"$f":"SUMIF('Bağışlar ve Sponsorluklar'!$L:$L,\"=\"&($A24&TEXT(H$4,\"aaa-yy\")),'Bağışlar ve Sponsorluklar'!$D:$D)+SUMIF('Listelenmiş Harcamalar'!$J:$J,\"=\"&($A24&TEXT(H$4,\"aaa-yy\")),'Listelenmiş Harcamalar'!$E:$E)","v":0},{"$f":"SUMIF('Bağışlar ve Sponsorluklar'!$L:$L,\"=\"&($A24&TEXT(I$4,\"aaa-yy\")),'Bağışlar ve Sponsorluklar'!$D:$D)+SUMIF('Listelenmiş Harcamalar'!$J:$J,\"=\"&($A24&TEXT(I$4,\"aaa-yy\")),'Listelenmiş Harcamalar'!$E:$E)","v":0},{"$f":"SUMIF('Bağışlar ve Sponsorluklar'!$L:$L,\"=\"&($A24&TEXT(J$4,\"aaa-yy\")),'Bağışlar ve Sponsorluklar'!$D:$D)+SUMIF('Listelenmiş Harcamalar'!$J:$J,\"=\"&($A24&TEXT(J$4,\"aaa-yy\")),'Listelenmiş Harcamalar'!$E:$E)","v":0},{"$f":"SUMIF('Bağışlar ve Sponsorluklar'!$L:$L,\"=\"&($A24&TEXT(K$4,\"aaa-yy\")),'Bağışlar ve Sponsorluklar'!$D:$D)+SUMIF('Listelenmiş Harcamalar'!$J:$J,\"=\"&($A24&TEXT(K$4,\"aaa-yy\")),'Listelenmiş Harcamalar'!$E:$E)","v":0},{"$f":"SUMIF('Bağışlar ve Sponsorluklar'!$L:$L,\"=\"&($A24&TEXT(L$4,\"aaa-yy\")),'Bağışlar ve Sponsorluklar'!$D:$D)+SUMIF('Listelenmiş Harcamalar'!$J:$J,\"=\"&($A24&TEXT(L$4,\"aaa-yy\")),'Listelenmiş Harcamalar'!$E:$E)","v":0},{"$f":"SUMIF('Bağışlar ve Sponsorluklar'!$L:$L,\"=\"&($A24&TEXT(M$4,\"aaa-yy\")),'Bağışlar ve Sponsorluklar'!$D:$D)+SUMIF('Listelenmiş Harcamalar'!$J:$J,\"=\"&($A24&TEXT(M$4,\"aaa-yy\")),'Listelenmiş Harcamalar'!$E:$E)","v":0},{"$f":"SUMIF('Bağışlar ve Sponsorluklar'!$L:$L,\"=\"&($A24&TEXT(N$4,\"aaa-yy\")),'Bağışlar ve Sponsorluklar'!$D:$D)+SUMIF('Listelenmiş Harcamalar'!$J:$J,\"=\"&($A24&TEXT(N$4,\"aaa-yy\")),'Listelenmiş Harcamalar'!$E:$E)","v":0},{"$f":"SUM(C24:N24)","v":0}]
[]
[11000,"Bağışlar",{"$f":"SUMIF('Bağışlar ve Sponsorluklar'!$L:$L,\"=\"&($A26&TEXT(C$4,\"aaa-yy\")),'Bağışlar ve Sponsorluklar'!$D:$D)+SUMIF('Listelenmiş Harcamalar'!$J:$J,\"=\"&($A26&TEXT(C$4,\"aaa-yy\")),'Listelenmiş Harcamalar'!$E:$E)","v":0},{"$f":"SUMIF('Bağışlar ve Sponsorluklar'!$L:$L,\"=\"&($A26&TEXT(D$4,\"aaa-yy\")),'Bağışlar ve Sponsorluklar'!$D:$D)+SUMIF('Listelenmiş Harcamalar'!$J:$J,\"=\"&($A26&TEXT(D$4,\"aaa-yy\")),'Listelenmiş Harcamalar'!$E:$E)","v":{"v":2500,"d":"2,500.00 TL"}},{"$f":"SUMIF('Bağışlar ve Sponsorluklar'!$L:$L,\"=\"&($A26&TEXT(E$4,\"aaa-yy\")),'Bağışlar ve Sponsorluklar'!$D:$D)+SUMIF('Listelenmiş Harcamalar'!$J:$J,\"=\"&($A26&TEXT(E$4,\"aaa-yy\")),'Listelenmiş Harcamalar'!$E:$E)","v":{"v":2500,"d":"2,500.00 TL"}},{"$f":"SUMIF('Bağışlar ve Sponsorluklar'!$L:$L,\"=\"&($A26&TEXT(F$4,\"aaa-yy\")),'Bağışlar ve Sponsorluklar'!$D:$D)+SUMIF('Listelenmiş Harcamalar'!$J:$J,\"=\"&($A26&TEXT(F$4,\"aaa-yy\")),'Listelenmiş Harcamalar'!$E:$E)","v":0},{"$f":"SUMIF('Bağışlar ve Sponsorluklar'!$L:$L,\"=\"&($A26&TEXT(G$4,\"aaa-yy\")),'Bağışlar ve Sponsorluklar'!$D:$D)+SUMIF('Listelenmiş Harcamalar'!$J:$J,\"=\"&($A26&TEXT(G$4,\"aaa-yy\")),'Listelenmiş Harcamalar'!$E:$E)","v":0},{"$f":"SUMIF('Bağışlar ve Sponsorluklar'!$L:$L,\"=\"&($A26&TEXT(H$4,\"aaa-yy\")),'Bağışlar ve Sponsorluklar'!$D:$D)+SUMIF('Listelenmiş Harcamalar'!$J:$J,\"=\"&($A26&TEXT(H$4,\"aaa-yy\")),'Listelenmiş Harcamalar'!$E:$E)","v":0},{"$f":"SUMIF('Bağışlar ve Sponsorluklar'!$L:$L,\"=\"&($A26&TEXT(I$4,\"aaa-yy\")),'Bağışlar ve Sponsorluklar'!$D:$D)+SUMIF('Listelenmiş Harcamalar'!$J:$J,\"=\"&($A26&TEXT(I$4,\"aaa-yy\")),'Listelenmiş Harcamalar'!$E:$E)","v":0},{"$f":"SUMIF('Bağışlar ve Sponsorluklar'!$L:$L,\"=\"&($A26&TEXT(J$4,\"aaa-yy\")),'Bağışlar ve Sponsorluklar'!$D:$D)+SUMIF('Listelenmiş Harcamalar'!$J:$J,\"=\"&($A26&TEXT(J$4,\"aaa-yy\")),'Listelenmiş Harcamalar'!$E:$E)","v":0},{"$f":"SUMIF('Bağışlar ve Sponsorluklar'!$L:$L,\"=\"&($A26&TEXT(K$4,\"aaa-yy\")),'Bağışlar ve Sponsorluklar'!$D:$D)+SUMIF('Listelenmiş Harcamalar'!$J:$J,\"=\"&($A26&TEXT(K$4,\"aaa-yy\")),'Listelenmiş Harcamalar'!$E:$E)","v":0},{"$f":"SUMIF('Bağışlar ve Sponsorluklar'!$L:$L,\"=\"&($A26&TEXT(L$4,\"aaa-yy\")),'Bağışlar ve Sponsorluklar'!$D:$D)+SUMIF('Listelenmiş Harcamalar'!$J:$J,\"=\"&($A26&TEXT(L$4,\"aaa-yy\")),'Listelenmiş Harcamalar'!$E:$E)","v":0},{"$f":"SUMIF('Bağışlar ve Sponsorluklar'!$L:$L,\"=\"&($A26&TEXT(M$4,\"aaa-yy\")),'Bağışlar ve Sponsorluklar'!$D:$D)+SUMIF('Listelenmiş Harcamalar'!$J:$J,\"=\"&($A26&TEXT(M$4,\"aaa-yy\")),'Listelenmiş Harcamalar'!$E:$E)","v":{"v":2500,"d":"2,500.00 TL"}},{"$f":"SUMIF('Bağışlar ve Sponsorluklar'!$L:$L,\"=\"&($A26&TEXT(N$4,\"aaa-yy\")),'Bağışlar ve Sponsorluklar'!$D:$D)+SUMIF('Listelenmiş Harcamalar'!$J:$J,\"=\"&($A26&TEXT(N$4,\"aaa-yy\")),'Listelenmiş Harcamalar'!$E:$E)","v":0},{"$f":"SUM(C26:N26)","v":{"v":7500,"d":"7,500.00 TL"}}]
[]
[12000,"Sponsorluklar",{"$f":"SUMIF('Bağışlar ve Sponsorluklar'!$L:$L,\"=\"&($A28&TEXT(C$4,\"aaa-yy\")),'Bağışlar ve Sponsorluklar'!$D:$D)+SUMIF('Listelenmiş Harcamalar'!$J:$J,\"=\"&($A28&TEXT(C$4,\"aaa-yy\")),'Listelenmiş Harcamalar'!$E:$E)","v":0},{"$f":"SUMIF('Bağışlar ve Sponsorluklar'!$L:$L,\"=\"&($A28&TEXT(D$4,\"aaa-yy\")),'Bağışlar ve Sponsorluklar'!$D:$D)+SUMIF('Listelenmiş Harcamalar'!$J:$J,\"=\"&($A28&TEXT(D$4,\"aaa-yy\")),'Listelenmiş Harcamalar'!$E:$E)","v":0},{"$f":"SUMIF('Bağışlar ve Sponsorluklar'!$L:$L,\"=\"&($A28&TEXT(E$4,\"aaa-yy\")),'Bağışlar ve Sponsorluklar'!$D:$D)+SUMIF('Listelenmiş Harcamalar'!$J:$J,\"=\"&($A28&TEXT(E$4,\"aaa-yy\")),'Listelenmiş Harcamalar'!$E:$E)","v":0},{"$f":"SUMIF('Bağışlar ve Sponsorluklar'!$L:$L,\"=\"&($A28&TEXT(F$4,\"aaa-yy\")),'Bağışlar ve Sponsorluklar'!$D:$D)+SUMIF('Listelenmiş Harcamalar'!$J:$J,\"=\"&($A28&TEXT(F$4,\"aaa-yy\")),'Listelenmiş Harcamalar'!$E:$E)","v":0},{"$f":"SUMIF('Bağışlar ve Sponsorluklar'!$L:$L,\"=\"&($A28&TEXT(G$4,\"aaa-yy\")),'Bağışlar ve Sponsorluklar'!$D:$D)+SUMIF('Listelenmiş Harcamalar'!$J:$J,\"=\"&($A28&TEXT(G$4,\"aaa-yy\")),'Listelenmiş Harcamalar'!$E:$E)","v":0},{"$f":"SUMIF('Bağışlar ve Sponsorluklar'!$L:$L,\"=\"&($A28&TEXT(H$4,\"aaa-yy\")),'Bağışlar ve Sponsorluklar'!$D:$D)+SUMIF('Listelenmiş Harcamalar'!$J:$J,\"=\"&($A28&TEXT(H$4,\"aaa-yy\")),'Listelenmiş Harcamalar'!$E:$E)","v":0},{"$f":"SUMIF('Bağışlar ve Sponsorluklar'!$L:$L,\"=\"&($A28&TEXT(I$4,\"aaa-yy\")),'Bağışlar ve Sponsorluklar'!$D:$D)+SUMIF('Listelenmiş Harcamalar'!$J:$J,\"=\"&($A28&TEXT(I$4,\"aaa-yy\")),'Listelenmiş Harcamalar'!$E:$E)","v":0},{"$f":"SUMIF('Bağışlar ve Sponsorluklar'!$L:$L,\"=\"&($A28&TEXT(J$4,\"aaa-yy\")),'Bağışlar ve Sponsorluklar'!$D:$D)+SUMIF('Listelenmiş Harcamalar'!$J:$J,\"=\"&($A28&TEXT(J$4,\"aaa-yy\")),'Listelenmiş Harcamalar'!$E:$E)","v":0},{"$f":"SUMIF('Bağışlar ve Sponsorluklar'!$L:$L,\"=\"&($A28&TEXT(K$4,\"aaa-yy\")),'Bağışlar ve Sponsorluklar'!$D:$D)+SUMIF('Listelenmiş Harcamalar'!$J:$J,\"=\"&($A28&TEXT(K$4,\"aaa-yy\")),'Listelenmiş Harcamalar'!$E:$E)","v":{"v":1000,"d":"1,000.00 TL"}},{"$f":"SUMIF('Bağışlar ve Sponsorluklar'!$L:$L,\"=\"&($A28&TEXT(L$4,\"aaa-yy\")),'Bağışlar ve Sponsorluklar'!$D:$D)+SUMIF('Listelenmiş Harcamalar'!$J:$J,\"=\"&($A28&TEXT(L$4,\"aaa-yy\")),'Listelenmiş Harcamalar'!$E:$E)","v":0},{"$f":"SUMIF('Bağışlar ve Sponsorluklar'!$L:$L,\"=\"&($A28&TEXT(M$4,\"aaa-yy\")),'Bağışlar ve Sponsorluklar'!$D:$D)+SUMIF('Listelenmiş Harcamalar'!$J:$J,\"=\"&($A28&TEXT(M$4,\"aaa-yy\")),'Listelenmiş Harcamalar'!$E:$E)","v":0},{"$f":"SUMIF('Bağışlar ve Sponsorluklar'!$L:$L,\"=\"&($A28&TEXT(N$4,\"aaa-yy\")),'Bağışlar ve Sponsorluklar'!$D:$D)+SUMIF('Listelenmiş Harcamalar'!$J:$J,\"=\"&($A28&TEXT(N$4,\"aaa-yy\")),'Listelenmiş Harcamalar'!$E:$E)","v":{"v":1000,"d":"1,000.00 TL"}},{"$f":"SUM(C28:N28)","v":{"v":2000,"d":"2,000.00 TL"}}]
[]
[null,"Toplam",{"$f":"SUM(C6:C28)","v":{"v":3250.75,"d":"3,250.75 TL"}},{"v":2500,"d":"2,500.00 TL"},{"v":2500,"d":"2,500.00 TL"},0,0,0,0,0,{"v":1000,"d":"1,000.00 TL"},{"v":3250.75,"d":"3,250.75 TL"},{"v":2500,"d":"2,500.00 TL"},{"v":1000,"d":"1,000.00 TL"},{"v":16001.5,"d":"16,001.50 TL"}]

{"sheet":"Listelenmiş Harcamalar","index":2,"n_rows":103,"n_cols":10,"rows_kept":103}
["Kebir Defteri Kodu","Fatura Tarihi","Fatura No","İsteyen"," Çek Tutarı ","Alacaklı","Çek Kullanımı","Dağıtım Yöntemi","Dosyalama Tarihi","Oluşturulan Anahtar Alanı"]
[1000,"2005-01-01",100,"Andy Teal",{"v":750.75,"d":"750.75 TL"},"Consolidated Messenger ","Mailer","Posta","2005-01-04",{"$f":"A2&TEXT(B2,\"aaa-yy\")","v":"1000Sat-05"}]
[7000,"2005-01-15",101,"Robert Walters",{"v":2500,"d":"2,500.00 TL"},"A. Datum Corporation ","2 masaüstü bilgisayarı","Kredi","2005-01-20","7000Sat-05"]
[{"$nulls":9},"Sat-00"]
[{"$nulls":9},"Sat-00"]
[{"$nulls":9},"Sat-00"]
[{"$nulls":9},"Sat-00"]
[{"$nulls":9},"Sat-00"]
[{"$nulls":9},"Sat-00"]
[{"$nulls":9},"Sat-00"]
[{"$nulls":9},"Sat-00"]
[{"$nulls":9},"Sat-00"]
[{"$nulls":9},"Sat-00"]
[{"$nulls":9},"Sat-00"]
[{"$nulls":9},"Sat-00"]
[{"$nulls":9},"Sat-00"]
[{"$nulls":9},"Sat-00"]
[{"$nulls":9},"Sat-00"]
[{"$nulls":9},"Sat-00"]
[{"$nulls":9},"Sat-00"]
[{"$nulls":9},"Sat-00"]
[{"$nulls":9},"Sat-00"]
[{"$nulls":9},"Sat-00"]
[{"$nulls":9},"Sat-00"]
[{"$nulls":9},"Sat-00"]
[{"$nulls":9},"Sat-00"]
[{"$nulls":9},"Sat-00"]
[{"$nulls":9},"Sat-00"]
[{"$nulls":9},"Sat-00"]
[{"$nulls":9},"Sat-00"]
[{"$nulls":9},"Sat-00"]
[{"$nulls":9},"Sat-00"]
[{"$nulls":9},"Sat-00"]
[{"$nulls":9},{"$f":"A34&TEXT(B34,\"aaa-yy\")","v":"Sat-00"}]
[{"$nulls":9},"Sat-00"]
[{"$nulls":9},"Sat-00"]
[{"$nulls":9},"Sat-00"]
[{"$nulls":9},"Sat-00"]
[{"$nulls":9},"Sat-00"]
[{"$nulls":9},"Sat-00"]
[{"$nulls":9},"Sat-00"]
[{"$nulls":9},"Sat-00"]
[{"$nulls":9},"Sat-00"]
[{"$nulls":9},"Sat-00"]
[{"$nulls":9},"Sat-00"]
[{"$nulls":9},"Sat-00"]
[{"$nulls":9},"Sat-00"]
[{"$nulls":9},"Sat-00"]
[{"$nulls":9},"Sat-00"]
[{"$nulls":9},"Sat-00"]
[{"$nulls":9},"Sat-00"]
[{"$nulls":9},"Sat-00"]
[{"$nulls":9},"Sat-00"]
[{"$nulls":9},"Sat-00"]
[{"$nulls":9},"Sat-00"]
[{"$nulls":9},"Sat-00"]
[{"$nulls":9},"Sat-00"]
[{"$nulls":9},"Sat-00"]
[{"$nulls":9},"Sat-00"]
[{"$nulls":9},"Sat-00"]
[{"$nulls":9},"Sat-00"]
[{"$nulls":9},"Sat-00"]
[{"$nulls":9},"Sat-00"]
[{"$nulls":9},"Sat-00"]
[{"$nulls":9},"Sat-00"]
[{"$nulls":9},{"$f":"A66&TEXT(B66,\"aaa-yy\")","v":"Sat-00"}]
[{"$nulls":9},"Sat-00"]
[{"$nulls":9},"Sat-00"]
[{"$nulls":9},"Sat-00"]
[{"$nulls":9},"Sat-00"]
[{"$nulls":9},"Sat-00"]
[{"$nulls":9},"Sat-00"]
[{"$nulls":9},"Sat-00"]
[{"$nulls":9},"Sat-00"]
[{"$nulls":9},"Sat-00"]
[{"$nulls":9},"Sat-00"]
[{"$nulls":9},"Sat-00"]
[{"$nulls":9},"Sat-00"]
[{"$nulls":9},"Sat-00"]
[{"$nulls":9},"Sat-00"]
[{"$nulls":9},"Sat-00"]
[{"$nulls":9},"Sat-00"]
[{"$nulls":9},"Sat-00"]
[{"$nulls":9},"Sat-00"]
[{"$nulls":9},"Sat-00"]
[{"$nulls":9},"Sat-00"]
[{"$nulls":9},"Sat-00"]
[{"$nulls":9},"Sat-00"]
[{"$nulls":9},"Sat-00"]
[{"$nulls":9},"Sat-00"]
[{"$nulls":9},"Sat-00"]
[{"$nulls":9},"Sat-00"]
[{"$nulls":9},"Sat-00"]
[{"$nulls":9},"Sat-00"]
[{"$nulls":9},"Sat-00"]
[{"$nulls":9},"Sat-00"]
[{"$nulls":9},"Sat-00"]
[{"$nulls":9},{"$f":"A98&TEXT(B98,\"aaa-yy\")","v":"Sat-00"}]
[{"$nulls":9},"Sat-00"]
[{"$nulls":9},"Sat-00"]
[{"$nulls":9},"Sat-00"]
[{"$nulls":9},"Sat-00"]
[{"$nulls":9},"Sat-00"]

{"sheet":"Bağışlar ve Sponsorluklar","index":3,"n_rows":109,"n_cols":12,"rows_kept":109}
["Kebir Defteri Kodu","Çek İsteği Başlatma Tarihi","İsteyen"," Çek Tutarı "," Önceki Yılın Katkısı ","Alacaklı","Kullanım","İmzalayan","Kategori","Dağıtım Yöntemi","Dosyalama Tarihi","Oluşturulan Anahtar Alanı"]
[12000,"2005-01-20","Susan W. Eaton",{"v":1000,"d":"1,000.00 TL"},0,"Güzel Sanatlar Okulu ","Burs","Kim Ralls","Sanat","Çek","2005-01-30",{"$f":"A2&TEXT(B2,\"aaa-yy\")","v":"12000Thu-05"}]
[11000,"2005-02-15","Susan W. Eaton",{"v":2500,"d":"2,500.00 TL"},0,"Wingtip Oyuncakları ","Topluluk","Kathie Flood","Topluluk","Çek","2005-03-01","11000Tue-05"]
[{"$nulls":11},"Sat-00"]
[{"$nulls":11},"Sat-00"]
[{"$nulls":11},"Sat-00"]
[{"$nulls":11},"Sat-00"]
[{"$nulls":11},"Sat-00"]
[{"$nulls":11},"Sat-00"]
[{"$nulls":11},"Sat-00"]
[{"$nulls":11},"Sat-00"]
[{"$nulls":11},"Sat-00"]
[{"$nulls":11},"Sat-00"]
[{"$nulls":11},"Sat-00"]
[{"$nulls":11},"Sat-00"]
[{"$nulls":11},"Sat-00"]
[{"$nulls":11},"Sat-00"]
[{"$nulls":11},"Sat-00"]
[{"$nulls":11},"Sat-00"]
[{"$nulls":11},"Sat-00"]
[{"$nulls":11},"Sat-00"]
[{"$nulls":11},"Sat-00"]
[{"$nulls":11},"Sat-00"]
[{"$nulls":11},"Sat-00"]
[{"$nulls":11},"Sat-00"]
[{"$nulls":11},"Sat-00"]
[{"$nulls":11},"Sat-00"]
[{"$nulls":11},"Sat-00"]
[{"$nulls":11},"Sat-00"]
[{"$nulls":11},"Sat-00"]
[{"$nulls":11},"Sat-00"]
[{"$nulls":11},"Sat-00"]
[{"$nulls":11},"Sat-00"]
[{"$nulls":11},{"$f":"A34&TEXT(B34,\"aaa-yy\")","v":"Sat-00"}]
[{"$nulls":11},"Sat-00"]
[{"$nulls":11},"Sat-00"]
[{"$nulls":11},"Sat-00"]
[{"$nulls":11},"Sat-00"]
[{"$nulls":11},"Sat-00"]
[{"$nulls":11},"Sat-00"]
[{"$nulls":11},"Sat-00"]
[{"$nulls":11},"Sat-00"]
[{"$nulls":11},"Sat-00"]
[{"$nulls":11},"Sat-00"]
[{"$nulls":11},"Sat-00"]
[{"$nulls":11},"Sat-00"]
[{"$nulls":11},"Sat-00"]
[{"$nulls":11},"Sat-00"]
[{"$nulls":11},"Sat-00"]
[{"$nulls":11},"Sat-00"]
[{"$nulls":11},"Sat-00"]
[{"$nulls":11},"Sat-00"]
[{"$nulls":11},"Sat-00"]
[{"$nulls":11},"Sat-00"]
[{"$nulls":11},"Sat-00"]
[{"$nulls":11},"Sat-00"]
[{"$nulls":11},"Sat-00"]
[{"$nulls":11},"Sat-00"]
[{"$nulls":11},"Sat-00"]
[{"$nulls":11},"Sat-00"]
[{"$nulls":11},"Sat-00"]
[{"$nulls":11},"Sat-00"]
[{"$nulls":11},"Sat-00"]
[{"$nulls":11},"Sat-00"]
[{"$nulls":11},"Sat-00"]
[{"$nulls":11},{"$f":"A66&TEXT(B66,\"aaa-yy\")","v":"Sat-00"}]
[{"$nulls":11},"Sat-00"]
[{"$nulls":11},"Sat-00"]
[{"$nulls":11},"Sat-00"]
[{"$nulls":11},"Sat-00"]
[{"$nulls":11},"Sat-00"]
[{"$nulls":11},"Sat-00"]
[{"$nulls":11},"Sat-00"]
[{"$nulls":11},"Sat-00"]
[{"$nulls":11},"Sat-00"]
[{"$nulls":11},"Sat-00"]
[{"$nulls":11},"Sat-00"]
[{"$nulls":11},"Sat-00"]
[{"$nulls":11},"Sat-00"]
[{"$nulls":11},"Sat-00"]
[{"$nulls":11},"Sat-00"]
[{"$nulls":11},"Sat-00"]
[{"$nulls":11},"Sat-00"]
[{"$nulls":11},"Sat-00"]
[{"$nulls":11},"Sat-00"]
[{"$nulls":11},"Sat-00"]
[{"$nulls":11},"Sat-00"]
[{"$nulls":11},"Sat-00"]
[{"$nulls":11},"Sat-00"]
[{"$nulls":11},"Sat-00"]
[{"$nulls":11},"Sat-00"]
[{"$nulls":11},"Sat-00"]
[{"$nulls":11},"Sat-00"]
[{"$nulls":11},"Sat-00"]
[{"$nulls":11},"Sat-00"]
[{"$nulls":11},"Sat-00"]
[{"$nulls":11},"Sat-00"]
[{"$nulls":11},{"$f":"A98&TEXT(B98,\"aaa-yy\")","v":"Sat-00"}]
[{"$nulls":11},"Sat-00"]
[{"$nulls":11},"Sat-00"]
[{"$nulls":11},"Sat-00"]
[{"$nulls":11},"Sat-00"]
[{"$nulls":11},"Sat-00"]
[{"$nulls":11},"Sat-00"]
[{"$nulls":11},"Sat-00"]
[{"$nulls":11},"Sat-00"]
[{"$nulls":11},"Sat-00"]
[{"$nulls":11},"Sat-00"]
[{"$nulls":11},"Sat-00"]